fUST/lending_fUST_20250528
["ID","MTS","AMOUNT","RATE_DAILY","PERIOD"]
[362736898,1748417749017,2504.55199,0.00021,31]
[362736907,1748418318262,385113.05935207,0.00021918,30]
[362736960,1748418632306,-182.70248916,0.00016438,3]
[362736962,1748418632315,-196.104398,0.00017181,2]
[362736964,1748418632325,-433.97577098,0.0001746,2]
[362736966,1748418632335,-748.406245,0.00017553,2]
[362736968,1748418632344,-1485.2961899,0.00017712,2]
[362736970,1748418632354,-4530.84147841,0.00018,2]
[362736972,1748418632364,-1111.9212983,0.00018096,2]
[362736974,1748418632374,-1281.325706,0.00018243,2]
[362736976,1748418632383,-765.91865681,0.00018244,2]
[362736978,1748418632392,-326.241048,0.00018246,2]
[362736980,1748418632401,-307.9859315,0.000183,2]
[362736982,1748418632411,-69.93065853,0.0001862,2]
[362737239,1748418638463,-929.75915247,0.0001862,2]
[362737242,1748418638474,-352.4972578,0.000187,2]
[362737244,1748418638484,-316.6129922,0.000187,2]
[362737247,1748418638495,-1143.5197178,0.000187,2]
[362737248,1748418638507,-16.84981909,0.00018807,2]
[362739639,1748418807511,235.495209,0.00013699,2]
[362739642,1748419291644,200.0,0.00024109,120]
[362740032,1748419838517,-154.44776078,0.00017261,2]
[362740034,1748419838529,-206.239238,0.00017361,2]
[362740036,1748419838540,-200.0,0.00017361,2]
[362740038,1748419838552,-440.12691078,0.0001746,2]
[362740040,1748419838563,-160.95652747,0.0001746,2]
[362740043,1748419838574,-200.0,0.0001746,2]
[362740045,1748419838586,-300.0,0.00017513,2]
[362740047,1748419838597,-3478.0264172,0.00017514,2]
[362740049,1748419838608,-200.0,0.00017514,2]
[362740052,1748419838619,-400.35384744,0.00017897,2]
[362740054,1748419838631,-14076.5328704,0.00017898,2]
[362740056,1748419838643,-17453.512936,0.00018,2]
[362740058,1748419838652,-212.53608069,0.00018033,2]
[362740060,1748419838662,-207.4,0.00018133,2]
[362740062,1748419838672,-973.059992,0.0001862,2]
[362740064,1748419838682,-594.338144,0.00018727,2]
[362740066,1748419838692,-161.7037387,0.000188,2]
[362740069,1748419838702,-500.0,0.00018897,2]
[362740071,1748419838713,-164.08993865,0.00018897,2]
[362740073,1748419838723,-500.0,0.00018897,2]
[362740075,1748419838735,-294.26700201,0.00018897,2]
[362740077,1748419838748,-61420.0,0.000189,2]
[362740080,1748419838759,-7853.50821129,0.000189,2]
[362740082,1748419838770,-895.98958036,0.000189,2]
[362740084,1748419838780,-158.09966622,0.00018973,2]
[362740086,1748419838790,-500.0,0.00018999,2]
[362740088,1748419838800,-500.0,0.00018999,2]
[362740090,1748419838810,-379.67537124,0.00018999,2]
[362740092,1748419838821,-500.0,0.00018999,2]
[362740094,1748419838832,-636.66948783,0.00018999,2]
[362740097,1748419838844,-927.0165779,0.00018999,2]
[362740099,1748419838855,-927.0165779,0.00018999,2]
[362740101,1748419838865,-927.0165779,0.00018999,2]
[362740103,1748419838876,-927.0165779,0.00018999,2]
[362740105,1748419838887,-927.0165779,0.00018999,2]
[362740107,1748419838899,-927.0165779,0.00018999,2]
[362740109,1748419838909,-927.0165779,0.00018999,2]
[362740111,1748419838920,-927.0165779,0.00018999,2]
[362740114,1748419838931,-927.0165779,0.00018999,2]
[362740116,1748419838942,-927.0165779,0.00018999,2]
[362740118,1748419838955,-927.0165779,0.00018999,2]
[362740120,1748419838966,-932.4696166,0.00018999,2]
[362740122,1748419838976,-932.4696166,0.00018999,2]
[362740124,1748419838987,-932.4696166,0.00018999,2]
[362740126,1748419838996,-932.4696166,0.00018999,2]
[362740128,1748419839007,-932.4696166,0.00018999,2]
[362740131,1748419839017,-932.4696166,0.00018999,2]
[362740133,1748419839027,-932.4696166,0.00018999,2]
[362740135,1748419839037,-973.84795583,0.00018999,2]
[362740136,1748419839047,-973.84795583,0.00018999,2]
[362740137,1748419839058,-973.84795583,0.00018999,2]
[362740138,1748419839068,-973.84795583,0.00018999,2]
[362740139,1748419839078,-973.84795583,0.00018999,2]
[362740140,1748419839089,-973.84795583,0.00018999,2]
[362740141,1748419839100,-973.84795583,0.00018999,2]
[362740142,1748419839110,-973.84795583,0.00018999,2]
[362740143,1748419839121,-1363.38713818,0.00018999,2]
[362740144,1748419839131,-160.0,0.00018999,2]
[362740145,1748419839141,-168.769,0.00018999,2]
[362740146,1748419839152,-220.7309126,0.00018999,2]
[362740147,1748419839162,-12701.20201918,0.00019,3]
[362740148,1748419839172,-14355.82806311,0.00019,2]
[362740150,1748419839189,-29018.86851267,0.00019,2]
[362740153,1748419839200,-842.5625,0.00019,3]
[362740155,1748419839211,-103153.80242804,0.00019,2]
[362740358,1748419844824,-300.0,0.00017513,2]
[362740361,1748419844838,-95117.598441,0.00019,2]
[362740363,1748419844850,-1609.04163502,0.00019,2]
[362741274,1748420166375,239.868527,0.00013699,2]
[362741402,1748421032687,-875.753992,0.0001862,2]
[362741404,1748421032696,-300.0,0.00018899,2]
[362741405,1748421032706,-300.0,0.00018899,2]
[362741406,1748421032715,-753.59179729,0.000189,2]
[362741407,1748421032724,-5000.0,0.000189,2]
[362741408,1748421032733,-3008.0525681,0.000189,2]
[362741409,1748421032743,-207.4,0.00018989,2]
[362741410,1748421032752,-398.55612291,0.00018989,2]
[362741411,1748421032761,-300.0,0.00018993,2]
[362741412,1748421032770,-5560.25169298,0.00018996,2]
[362741466,1748421038512,-160.0,0.00018977,2]
[362741468,1748421038522,-743.67952062,0.00018996,2]
[362741470,1748421038534,-4292.11031699,0.00018996,2]
[362742069,1748421045010,-16991.38359641,0.00018996,2]
[362742071,1748421045020,-241.04404056,0.00018999,2]
[362742073,1748421045029,-500.0,0.00018999,2]
[362742075,1748421045039,-648.63981455,0.00018999,2]
[362742077,1748421045048,-327.89081514,0.00018999,2]
[362742079,1748421045057,-500.0,0.00018999,2]
[362742080,1748421045066,-300.0,0.00018999,2]
[362742082,1748421045075,-234.80195682,0.00018999,2]
[362742084,1748421045086,-573.17444182,0.00018999,2]
[362742087,1748421045095,-160.0,0.00018999,2]
[362742088,1748421045105,-12658.7678854,0.00019,3]
[362742090,1748421045115,-212.66609673,0.00019,3]
[362742092,1748421045124,-260.41666665,0.00019,3]
[362742094,1748421045134,-211516.889869,0.00019,2]
[362742097,1748421045146,-267.34382108,0.00019,2]
[362742252,1748421046610,-4202.14494753,0.00019,2]
[362742477,1748421110132,818.0,0.00015,2]
[362742482,1748421532889,265.378645,0.00013699,2]
[362742485,1748421751090,5019.96403,0.00024657,120]
[362742495,1748422232764,-178.715639,0.00017812,2]
[362742496,1748422232774,-6620.0856103,0.00017947,2]
[362742497,1748422232783,-300.0,0.00017956,2]
[362742498,1748422232792,-300.0,0.00017956,2]
[362742499,1748422232803,-7493.0,0.00017957,2]
[362742500,1748422232812,-340.6903235,0.00017972,2]
[362742501,1748422232822,-788.178593,0.0001862,2]
[362742502,1748422232833,-207.4,0.00018886,2]
[362742503,1748422232842,-500.0,0.00018897,2]
[362742504,1748422232851,-500.0,0.00018897,2]
[362742505,1748422232861,-500.0,0.00018897,2]
[362742506,1748422232870,-500.0,0.00018897,2]
[362742507,1748422232879,-500.0,0.00018897,2]
[362742508,1748422232889,-258.11360058,0.00018897,2]
[362742509,1748422232898,-500.0,0.00018897,2]
[362742510,1748422232907,-500.0,0.00018897,2]
[362742511,1748422232917,-500.0,0.00018897,2]
[362742512,1748422232926,-500.0,0.00018897,2]
[362742513,1748422232936,-411.62175612,0.00018897,2]
[362742514,1748422232945,-500.0,0.00018897,2]
[362742515,1748422232955,-472.90107927,0.00018897,2]
[362742516,1748422232964,-500.0,0.00018897,2]
[362742517,1748422232974,-462.89229932,0.00018897,2]
[362742518,1748422232983,-500.0,0.00018897,2]
[362742519,1748422232993,-500.0,0.00018897,2]
[362742520,1748422233002,-500.0,0.00018897,2]
[362742521,1748422233011,-500.0,0.00018897,2]
[362742522,1748422233021,-500.0,0.00018897,2]
[362742523,1748422233031,-500.0,0.00018897,2]
[362742524,1748422233041,-500.0,0.00018897,2]
[362742525,1748422233051,-328.12886421,0.00018897,2]
[362742526,1748422233060,-500.0,0.00018897,2]
[362742527,1748422233069,-500.0,0.00018897,2]
[362742528,1748422233079,-946.43550108,0.000189,2]
[362742529,1748422233089,-2992.1114096,0.000189,2]
[362742530,1748422233099,-1074.70883969,0.000189,2]
[362742531,1748422233109,-500.0,0.00018973,2]
[362742532,1748422233119,-243.75527974,0.00018999,2]
[362742533,1748422233129,-572.96884117,0.00018999,2]
[362742534,1748422233138,-1815.43196,0.00018999,2]
[362742535,1748422233148,-49594.24819064,0.00019,2]
[362742547,1748422238755,-451.59482383,0.00019,2]
[362742897,1748422246828,-866.84439758,0.00019,2]
[362743255,1748422604949,252.109712,0.00013699,2]
[362743312,1748423431874,-728.61989998,0.00018559,2]
[362743382,1748423437884,-130.80325223,0.00018559,2]
[362743384,1748423437905,-459.19674777,0.00018559,2]
[362743387,1748423437918,-2152.7829,0.00018559,2]
[362743391,1748423437957,-2388.02035223,0.00018559,2]
[362743393,1748423437967,-716.3538,0.0001862,2]
[362743395,1748423437977,-757.14840084,0.000189,2]
[362743397,1748423437987,-300.0,0.00018988,2]
[362743399,1748423437996,-228.0,0.00018988,2]
[362743401,1748423438006,-207.4,0.00018989,2]
[362743403,1748423438016,-14.00236664,0.00019,2]
[362743936,1748423446022,-11398.61786949,0.00019,2]
[362744817,1748423585657,247.77541,0.00013699,2]
[362744819,1748423616083,733.79756528,0.00013699,2]
[362744820,1748423616197,733.79756528,0.00013699,2]
[362744830,1748424249086,175.04106957,0.00015759,2]
[362744849,1748424518417,655.17639757,0.00015759,2]
[362744850,1748424519010,573.27934787,0.00015759,2]
[362744851,1748424519970,501.61942939,0.00015759,2]
[362744852,1748424520879,84.94822379,0.00015759,2]
[362744853,1748424520908,353.96877693,0.00015759,2]
[362744854,1748424521477,384.05237563,0.00015759,2]
[362744855,1748424522293,336.04582867,0.00015759,2]
[362744856,1748424523091,294.04010009,0.00015759,2]
[362744857,1748424523658,257.28508758,0.00015759,2]
[362744858,1748424524430,225.12445163,0.00015759,2]
[362744859,1748424525170,196.98389518,0.00015759,2]
[362744860,1748424525783,172.36090828,0.00015759,2]
[362744861,1748424526419,151.0,0.00015759,2]
[362744862,1748424526939,151.0,0.00015759,2]
[362744863,1748424527566,151.0,0.00015759,2]
[362744864,1748424528123,151.0,0.00015759,2]
[362744865,1748424528887,151.0,0.00015759,2]
[362744866,1748424529521,151.0,0.00015759,2]
[362744867,1748424530368,300.52635799,0.00015759,2]
[362744922,1748424632147,-184.024085,0.00016662,2]
[362744924,1748424632158,-177.035972,0.00016686,2]
[362744926,1748424632167,-267.389943,0.00016894,2]
[362744931,1748424632202,-293.360338,0.00016894,2]
[362744933,1748424632212,-241.505027,0.00017145,2]
[362744935,1748424632221,-562.67213122,0.00017148,2]
[362744937,1748424632230,-181.8290686,0.00017178,2]
[362744939,1748424632239,-174.9243093,0.00017202,2]
[362744940,1748424632248,-554.06172221,0.00017416,2]
[362744942,1748424632258,-238.624386,0.00017675,2]
[362744944,1748424632267,-1111.9212983,0.00017678,2]
[362744946,1748424632276,-300.0,0.00017952,2]
[362744948,1748424632285,-300.0,0.00017952,2]
[362744950,1748424632295,-300.0,0.00017952,2]
[362744952,1748424632304,-300.0,0.00017952,2]
[362744954,1748424632314,-1200.0,0.00017952,2]
[362744956,1748424632323,-300.0,0.00017952,2]
[362744958,1748424632333,-6102.9587014,0.00017955,2]
[362744962,1748424632357,-8669.5434006,0.00017955,2]
[362744964,1748424632366,-296.4165271,0.00018016,2]
[362744966,1748424632375,-207.4,0.00018049,2]
[362744968,1748424632384,-644.71842,0.0001862,2]
[362744970,1748424632394,-158.368211,0.000187,2]
[362744971,1748424632403,-500.0,0.00018897,2]
[362744973,1748424632413,-486.42874549,0.00018897,2]
[362744975,1748424632422,-500.0,0.00018897,2]
[362744978,1748424632432,-204.51507535,0.00018897,2]
[362744979,1748424632459,-605.71872068,0.000189,2]
[362744981,1748424632468,-3442.29843485,0.000189,2]
[362744982,1748424632478,-152.0,0.00018928,2]
[362744983,1748424632488,-203.47408634,0.00018989,2]
[362744984,1748424632497,-4567.73,0.00018998,2]
[362744985,1748424632508,-505.47079318,0.00018999,2]
[362744986,1748424632518,-555.08869191,0.00018999,2]
[362744987,1748424632528,-233.57812228,0.00018999,2]
[362744988,1748424632538,-12658.7678854,0.00019,3]
[362744989,1748424632548,-212.66609673,0.00019,3]
[362744990,1748424632700,-842.5625,0.00019,3]
[362744991,1748424632710,-18791.49631407,0.00019,3]
[362744992,1748424632718,-139944.11354779,0.00019,2]
[362744993,1748424632726,-258808.59707175,0.00019,2]
[362744994,1748424632737,-1219.74313515,0.00019,2]
[362744995,1748424632747,-8529.89208097,0.00019,2]
[362744996,1748424632753,-239.88057,0.00019,2]
[362744997,1748424632763,-151.0,0.00019,2]
[362744998,1748424632773,-198.773182,0.00019,2]
[362744999,1748424632782,-151.0,0.00019,2]
[362745000,1748424632792,-151.0,0.00019,2]
[362745001,1748424632802,-151.0,0.00019,2]
[362745002,1748424632811,-151.0,0.00019,2]
[362745003,1748424632821,-151.0,0.00019,2]
[362745004,1748424632830,-151.0,0.00019,2]
[362745005,1748424632840,-151.0,0.00019,2]
[362745006,1748424632850,-152.402383,0.00019,2]
[362745007,1748424632859,-151.0,0.00019,2]
[362745008,1748424632869,-251.0,0.00019,2]
[362745009,1748424632879,-151.0,0.00019,2]
[362745010,1748424632888,-151.0,0.00019,2]
[362745011,1748424632897,-151.0,0.00019,2]
[362745012,1748424632906,-151.0,0.00019,2]
[362745013,1748424632915,-151.0,0.00019,2]
[362745014,1748424632924,-151.0,0.00019,2]
[362745015,1748424632936,-151.0,0.00019,2]
[362745016,1748424632957,-151.0,0.00019,2]
[362745017,1748424632967,-158.806229,0.00019,2]
[362745018,1748424632976,-151.0,0.00019,2]
[362745019,1748424632986,-151.0,0.00019,2]
[362745020,1748424632997,-151.0,0.00019,2]
[362745021,1748424633006,-151.0,0.00019,2]
[362745022,1748424633015,-151.0,0.00019,2]
[362745023,1748424633025,-151.0,0.00019,2]
[362745024,1748424633034,-151.0,0.00019,2]
[362745025,1748424633044,-151.0,0.00019,2]
[362745026,1748424633053,-151.0,0.00019,2]
[362745027,1748424633063,-151.0,0.00019,2]
[362745028,1748424633082,-151.0,0.00019,2]
[362745029,1748424633092,-151.0,0.00019,2]
[362745030,1748424633102,-151.0,0.00019,2]
[362745031,1748424633112,-289.842,0.00019,2]
[362745032,1748424633122,-151.0,0.00019,2]
[362745033,1748424633132,-151.0,0.00019,2]
[362745034,1748424633144,-151.0,0.00019,2]
[362745035,1748424633154,-151.0,0.00019,2]
[362745036,1748424633163,-151.0,0.00019,2]
[362745037,1748424633173,-151.0,0.00019,2]
[362745038,1748424633182,-350.673412,0.00019,2]
[362745039,1748424633192,-350.673412,0.00019,2]
[362745040,1748424633202,-151.0,0.00019,2]
[362745041,1748424633212,-151.0,0.00019,2]
[362745042,1748424633222,-151.0,0.00019,2]
[362745043,1748424633231,-151.0,0.00019,2]
[362745044,1748424633240,-151.0,0.00019,2]
[362745045,1748424633250,-151.0,0.00019,2]
[362745046,1748424633259,-151.0,0.00019,2]
[362745047,1748424633269,-151.0,0.00019,2]
[362745048,1748424633278,-151.0,0.00019,2]
[362745049,1748424633288,-151.0,0.00019,2]
[362745050,1748424633298,-151.0,0.00019,2]
[362745051,1748424633308,-151.0,0.00019,2]
[362745052,1748424633319,-151.0,0.00019,2]
[362745053,1748424633329,-151.784493,0.00019,2]
[362745054,1748424633339,-151.0,0.00019,2]
[362745055,1748424633350,-1075.80188657,0.00019068,2]
[362745056,1748424633361,-605.71872067,0.00019082,2]
[362745057,1748424633372,-8010.75721961,0.000191,2]
[362745058,1748424633385,-151.0,0.000191,2]
[362745059,1748424633395,-151.0,0.000191,2]
[362745060,1748424633406,-151.0,0.000191,2]
[362745061,1748424633417,-151.0,0.000191,2]
[362745062,1748424633427,-151.0,0.000191,2]
[362745063,1748424633437,-172.339969,0.000191,2]
[362745064,1748424633447,-151.0,0.000191,2]
[362745065,1748424633473,-151.0,0.000191,2]
[362745066,1748424633483,-151.0,0.000191,2]
[362745067,1748424633495,-177.083587,0.000191,2]
[362745068,1748424633510,-151.0,0.000191,2]
[362745069,1748424633521,-151.0,0.000191,2]
[362745070,1748424633532,-151.0,0.000191,2]
[362745071,1748424633542,-151.0,0.000191,2]
[362745072,1748424633552,-151.0,0.000191,2]
[362745073,1748424633564,-163.092108,0.000191,2]
[362745074,1748424633574,-151.0,0.000191,2]
[362745075,1748424633585,-151.0,0.000191,2]
[362745076,1748424633595,-151.0,0.000191,2]
[362745077,1748424633605,-151.83757,0.000191,2]
[362745078,1748424633614,-152.693127,0.000191,2]
[362745079,1748424633631,-151.0,0.000191,2]
[362745080,1748424633640,-151.0,0.000191,2]
[362745081,1748424633651,-151.0,0.000191,2]
[362745082,1748424633662,-151.0,0.000191,2]
[362745083,1748424633672,-151.0,0.000191,2]
[362745084,1748424633682,-151.0,0.000191,2]
[362745085,1748424633693,-151.0,0.000191,2]
[362745086,1748424633704,-151.0,0.000191,2]
[362745087,1748424633715,-161.435114,0.000191,2]
[362745088,1748424633728,-151.0,0.000191,2]
[362745089,1748424633739,-151.0,0.000191,2]
[362745090,1748424633750,-301.75718,0.000191,2]
[362745091,1748424633760,-350.673412,0.000191,2]
[362745092,1748424633770,-350.673412,0.000191,2]
[362745093,1748424633781,-151.0,0.000191,2]
[362745094,1748424633791,-151.0,0.000191,2]
[362745095,1748424633802,-151.0,0.000191,2]
[362745096,1748424633812,-151.0,0.000191,2]
[362745097,1748424633823,-151.0,0.000191,2]
[362745098,1748424633834,-151.0,0.000191,2]
[362745099,1748424633845,-151.0,0.000191,2]
[362745100,1748424633855,-151.0,0.000191,2]
[362745101,1748424633865,-151.0,0.000191,2]
[362745102,1748424633875,-151.0,0.000191,2]
[362745103,1748424633885,-151.0,0.000191,2]
[362745104,1748424633895,-151.0,0.000191,2]
[362745105,1748424633905,-58.33950034,0.000191,2]
[362745144,1748424640370,-8760.47892465,0.00017952,2]
[362745145,1748424640380,-92.66049966,0.000191,2]
[362745146,1748424640390,-3442.29843472,0.00019107,2]
[362745147,1748424640399,-430.0,0.00019178,2]
[362745148,1748424640409,-430.0,0.00019178,2]
[362745149,1748424640419,-430.0,0.00019178,2]
[362745150,1748424640429,-430.0,0.00019178,2]
[362745151,1748424640439,-430.0,0.00019178,2]
[362745152,1748424640449,-430.0,0.00019178,2]
[362745153,1748424640459,-430.0,0.00019178,2]
[362745154,1748424640468,-66.73197916,0.00019178,2]
[362745165,1748424642233,-466.34802084,0.00019178,2]
[362745166,1748424642243,-430.0,0.00019178,2]
[362745167,1748424642252,-358.90322874,0.00019178,2]
[362745168,1748424642289,-71.09677126,0.00019178,2]
[362745169,1748424642299,-430.0,0.00019178,2]
[362745170,1748424642308,-369.39,0.00019178,2]
[362745171,1748424642318,-430.0,0.00019178,2]
[362745172,1748424642328,-430.0,0.00019178,2]
[362745173,1748424642339,-545.15,0.00019178,2]
[362745174,1748424642349,-430.0,0.00019178,2]
[362745175,1748424642359,-430.0,0.00019178,2]
[362745176,1748424642369,-430.0,0.00019178,2]
[362745177,1748424642378,-430.0,0.00019178,2]
[362745178,1748424642387,-430.0,0.00019178,2]
[362745179,1748424642397,-433.96152516,0.00019178,2]
[362745182,1748424642406,-502.99050234,0.00019178,2]
[362745184,1748424642415,-430.0,0.00019178,2]
[362745186,1748424642425,-430.0,0.00019178,2]
[362745190,1748424642435,-430.0,0.00019178,2]
[362745191,1748424642565,-430.0,0.00019178,2]
[362745194,1748424642575,-430.0,0.00019178,2]
[362745195,1748424642585,-1172.82,0.00019178,2]
[362745196,1748424642594,-307.57165783,0.00019178,2]
[362745197,1748424642603,-503.52,0.00019178,2]
[362745198,1748424642612,-389.81184006,0.00019178,2]
[362745200,1748424642632,-40.18815994,0.00019178,2]
[362745201,1748424642642,-430.0,0.00019178,2]
[362745202,1748424642652,-2419.58,0.00019178,2]
[362745203,1748424642663,-430.0,0.00019178,2]
[362745204,1748424642672,-42.00084256,0.00019178,2]
[362745205,1748424642684,-387.99915744,0.00019178,2]
[362745206,1748424642694,-430.0,0.00019178,2]
[362745207,1748424642704,-1212.96,0.00019178,2]
[362745208,1748424642715,-431.06439751,0.00019178,2]
[362745209,1748424642726,-430.0,0.00019178,2]
[362745210,1748424642736,-200.35583308,0.00019178,2]
[362745211,1748424642746,-4611.16,0.00019178,2]
[362745212,1748424642755,-430.0,0.00019178,2]
[362745213,1748424642765,-466.19,0.00019178,2]
[362745214,1748424642774,-2581.64,0.00019178,2]
[362745215,1748424642784,-430.0,0.00019178,2]
[362745216,1748424642793,-430.0,0.00019178,2]
[362745217,1748424642803,-1118.71,0.00019178,2]
[362745218,1748424642812,-430.0,0.00019178,2]
[362745219,1748424642822,-1603.97,0.00019178,2]
[362745220,1748424642831,-430.0,0.00019178,2]
[362745221,1748424642841,-2193.14,0.00019178,2]
[362745222,1748424642851,-430.0,0.00019178,2]
[362745223,1748424642861,-729.73,0.00019178,2]
[362745224,1748424642870,-214.18319653,0.00019178,2]
[362745225,1748424642880,-433.18924757,0.00019178,2]
[362745226,1748424642891,-430.0,0.00019178,2]
[362745227,1748424642900,-430.0,0.00019178,2]
[362745228,1748424642911,-430.0,0.00019178,2]
[362745229,1748424642921,-430.0,0.00019178,2]
[362745230,1748424642931,-430.0,0.00019178,2]
[362745231,1748424642941,-2447.36,0.00019178,2]
[362745232,1748424642950,-430.0,0.00019178,2]
[362745233,1748424642960,-430.0,0.00019178,2]
[362745234,1748424642973,-430.0,0.00019178,2]
[362745235,1748424643001,-430.0,0.00019178,2]
[362745236,1748424643012,-436.41,0.00019178,2]
[362745237,1748424643022,-374.36113551,0.00019178,2]
[362745238,1748424643032,-430.0,0.00019178,2]
[362745239,1748424643041,-430.0,0.00019178,2]
[362745240,1748424643051,-430.0,0.00019178,2]
[362745242,1748424643060,-538.32,0.00019178,2]
[362745244,1748424643070,-430.0,0.00019178,2]
[362745246,1748424643079,-636.9,0.00019178,2]
[362745248,1748424643089,-430.0,0.00019178,2]
[362745250,1748424643100,-1566.21,0.00019178,2]
[362745252,1748424643110,-51.05730958,0.00019178,2]
[362745255,1748424643127,-185.65269042,0.00019178,2]
[362745256,1748424643138,-430.0,0.00019178,2]
[362745257,1748424643148,-183.41401941,0.00019178,2]
[362745258,1748424643231,-246.58598059,0.00019178,2]
[362745260,1748424643241,-498.03,0.00019178,2]
[362745261,1748424643250,-26.94882385,0.00019178,2]
[362745273,1748424648078,235.386639,0.00013699,2]
[362745346,1748425714270,1938.51957902,0.00016,2]
[362745347,1748425714299,60.14042098,0.00016,2]
[362745385,1748425832202,-258.589264,0.00017649,2]
[362745387,1748425832212,-193.81322035,0.00017649,2]
[362745388,1748425832226,-117.04875731,0.00018195,2]
[362745390,1748425832416,-1368.24743259,0.00018195,2]
[362745391,1748425832426,-313.379027,0.00018429,2]
[362745392,1748425832436,-341.54097813,0.0001843,2]
[362745393,1748425832446,-170.77048906,0.00018506,2]
[362745394,1748425832456,-398.169929,0.000189,2]
[362745395,1748425832467,-207.4,0.00018989,2]
[362745396,1748425832477,-1200.0,0.00018998,2]
[362745397,1748425832487,-300.0,0.00018999,2]
[362745398,1748425832500,-300.0,0.00018999,2]
[362745399,1748425832509,-180.750825,0.00019,2]
[362745400,1748425832519,-180.750825,0.00019,2]
[362745401,1748425832528,-151.0,0.00019,2]
[362745402,1748425832538,-151.0,0.00019,2]
[362745403,1748425832549,-151.0,0.00019,2]
[362745404,1748425832558,-152.396393,0.00019,2]
[362745405,1748425832578,-151.0,0.00019,2]
[362745406,1748425832589,-151.0,0.00019,2]
[362745407,1748425832599,-151.0,0.00019,2]
[362745408,1748425832613,-191.010539,0.00019,2]
[362745409,1748425832624,-151.0,0.00019,2]
[362745410,1748425832633,-151.0,0.00019,2]
[362745411,1748425832642,-151.0,0.00019,2]
[362745412,1748425832652,-151.0,0.00019,2]
[362745413,1748425832661,-151.0,0.00019,2]
[362745414,1748425832670,-151.0,0.00019,2]
[362745415,1748425832679,-151.0,0.00019,2]
[362745416,1748425832688,-151.0,0.00019,2]
[362745417,1748425832697,-151.0,0.00019,2]
[362745418,1748425832707,-151.0,0.00019,2]
[362745419,1748425832716,-151.0,0.00019,2]
[362745420,1748425832726,-151.0,0.00019,2]
[362745421,1748425832735,-151.0,0.00019,2]
[362745422,1748425832743,-280.538729,0.00019,2]
[362745423,1748425832752,-280.538729,0.00019,2]
[362745424,1748425832762,-151.0,0.00019,2]
[362745425,1748425832770,-151.0,0.00019,2]
[362745426,1748425832780,-151.0,0.00019,2]
[362745427,1748425832789,-151.0,0.00019,2]
[362745428,1748425832798,-940.37023472,0.00019078,2]
[362745429,1748425832806,-180.750825,0.000191,2]
[362745430,1748425832815,-180.750825,0.000191,2]
[362745431,1748425832826,-151.0,0.000191,2]
[362745432,1748425832835,-151.0,0.000191,2]
[362745433,1748425832845,-151.0,0.000191,2]
[362745434,1748425832858,-151.0,0.000191,2]
[362745435,1748425832869,-151.0,0.000191,2]
[362745436,1748425832879,-202.440362,0.000191,2]
[362745437,1748425832888,-151.0,0.000191,2]
[362745438,1748425832897,-151.0,0.000191,2]
[362745439,1748425832907,-151.0,0.000191,2]
[362745440,1748425832917,-151.0,0.000191,2]